fUST/lending_fUST_20250216
["ID","MTS","AMOUNT","RATE_DAILY","PERIOD"]
[353243490,1739712638336,-500.0,8.742e-05,2]
[353243493,1739712638346,-678.87,8.742e-05,2]
[353243496,1739712638355,-1729.03,8.742e-05,2]
[353243499,1739712638365,-324.99941487,8.742e-05,2]
[353243502,1739712638375,-500.0,8.742e-05,2]
[353243505,1739712638385,-500.0,8.742e-05,2]
[353243508,1739712638394,-500.0,8.742e-05,2]
[353243510,1739712638404,-583.48,8.742e-05,2]
[353243512,1739712638413,-869.76,8.742e-05,2]
[353243514,1739712638423,-500.0,8.742e-05,2]
[353243515,1739712638432,-500.0,8.742e-05,2]
[353243516,1739712638441,-500.0,8.742e-05,2]
[353243518,1739712638451,-500.0,8.742e-05,2]
[353243519,1739712638461,-594.17,8.742e-05,2]
[353243521,1739712638471,-577.96724556,8.742e-05,2]
[353243522,1739712638481,-1025.86,8.742e-05,2]
[353243523,1739712638490,-500.0,8.742e-05,2]
[353243524,1739712638499,-377.1150958,8.742e-05,2]
[353243525,1739712638509,-500.0,8.742e-05,2]
[353243526,1739712638518,-501.77182401,8.742e-05,2]
[353243527,1739712638528,-500.0,8.742e-05,2]
[353243528,1739712638537,-500.0,8.742e-05,2]
[353243529,1739712638547,-500.0,8.742e-05,2]
[353243530,1739712638557,-500.0,8.742e-05,2]
[353243531,1739712638566,-500.0,8.742e-05,2]
[353243532,1739712638575,-500.0,8.742e-05,2]
[353243533,1739712638585,-639.03,8.742e-05,2]
[353243534,1739712638595,-500.0,8.742e-05,2]
[353243535,1739712638604,-500.0,8.742e-05,2]
[353243536,1739712638614,-500.0,8.742e-05,2]
[353243537,1739712638624,-1087.42631252,8.742e-05,2]
[353243538,1739712638636,-31.06368748,8.742e-05,2]
[353243539,1739712638646,-500.0,8.742e-05,2]
[353243540,1739712638656,-624.82,8.742e-05,2]
[353243541,1739712638665,-675.76,8.742e-05,2]
[353243542,1739712638675,-502.18607029,8.742e-05,2]
[353243543,1739712638684,-500.0,8.742e-05,2]
[353243544,1739712638694,-636.22,8.742e-05,2]
[353243545,1739712638704,-500.0,8.742e-05,2]
[353243546,1739712638714,-500.0,8.742e-05,2]
[353243547,1739712638723,-500.0,8.742e-05,2]
[353243548,1739712638733,-501.8535876,8.742e-05,2]
[353243549,1739712638742,-500.0,8.742e-05,2]
[353243550,1739712638753,-500.0,8.742e-05,2]
[353243551,1739712638763,-501.13956555,8.742e-05,2]
[353243552,1739712638896,-452.44,8.742e-05,2]
[353243553,1739712638909,-507.84,8.742e-05,2]
[353243554,1739712638919,-501.05117217,8.742e-05,2]
[353243555,1739712638928,-1224.72,8.742e-05,2]
[353243556,1739712638938,-3442.97,8.742e-05,2]
[353243557,1739712638948,-500.0,8.742e-05,2]
[353243558,1739712638957,-500.0,8.742e-05,2]
[353243559,1739712638967,-424.6815237,8.742e-05,2]
[353243560,1739712638977,-500.0,8.742e-05,2]
[353243561,1739712638986,-500.0,8.742e-05,2]
[353243562,1739712638998,-660.75,8.742e-05,2]
[353243563,1739712639008,-897.67,8.742e-05,2]
[353243564,1739712639017,-14613.15,8.742e-05,2]
[353243565,1739712639027,-500.0,8.742e-05,2]
[353243566,1739712639037,-500.0,8.742e-05,2]
[353243567,1739712639056,-500.0,8.742e-05,2]
[353243568,1739712639066,-503.02349459,8.742e-05,2]
[353243569,1739712639075,-1027.84,8.742e-05,2]
[353243570,1739712639084,-836.78,8.742e-05,2]
[353243571,1739712639094,-500.0,8.742e-05,2]
[353243572,1739712639103,-500.0,8.742e-05,2]
[353243573,1739712639113,-500.0,8.742e-05,2]
[353243574,1739712639122,-752.81,8.742e-05,2]
[353243575,1739712639132,-501.4428217,8.742e-05,2]
[353243576,1739712639142,-500.0,8.742e-05,2]
[353243577,1739712639152,-500.0,8.742e-05,2]
[353243578,1739712639161,-500.0,8.742e-05,2]
[353243579,1739712639171,-513.93,8.742e-05,2]
[353243580,1739712639180,-676.91,8.742e-05,2]
[353243581,1739712639190,-6394.88429952,8.742e-05,2]
[353243582,1739712639201,-19162.25143469,8.742e-05,2]
[353243583,1739712639212,-7951.60775261,8.742e-05,2]
[353243584,1739712639224,-1584.37651318,8.742e-05,2]
[353243585,1739712639234,-500.0,8.742e-05,2]
[353243586,1739712639244,-539.46,8.743e-05,2]
[353243587,1739712639253,-664.55,8.743e-05,2]
[353243588,1739712639263,-393.27485638,8.743e-05,2]
[353243589,1739712639275,-106.72514362,8.743e-05,2]
[353243590,1739712639286,-446.2,8.743e-05,2]
[353243591,1739712639296,-459.67485638,8.743e-05,2]
[353243592,1739712639314,-1333.99999851,8.743e-05,2]
[353243593,1739712639326,-114.14514511,8.743e-05,2]
[353243594,1739712639336,-154.58985789,8.743e-05,2]
[353243678,1739712643319,-517.92,8.741e-05,2]
[353243679,1739712643331,-385.359996,8.741e-05,2]
[353243706,1739712646275,-114.640004,8.741e-05,2]
[353243707,1739712646289,-500.0,8.741e-05,2]
[353243708,1739712646298,-417.37014534,8.742e-05,2]
[353243745,1739713832668,-900.0,8.22e-05,2]
[353243748,1739713832678,-1320.58568674,8.717e-05,2]
[353243750,1739713832687,-217.81431326,8.737e-05,2]
[353243754,1739713832699,-82.18568674,8.737e-05,2]
[353243756,1739713832709,-500.0,8.738e-05,2]
[353243758,1739713832719,-500.0,8.738e-05,2]
[353243760,1739713832728,-500.0,8.738e-05,2]
[353243762,1739713832739,-501.09509047,8.738e-05,2]
[353243765,1739713832748,-500.0,8.738e-05,2]
[353243768,1739713832758,-500.0,8.738e-05,2]
[353243769,1739713832768,-500.0,8.738e-05,2]
[353243771,1739713832780,-261.91922279,8.738e-05,2]
[353243774,1739713832791,-238.08077721,8.738e-05,2]
[353243775,1739713832800,-508.50828585,8.738e-05,2]
[353243777,1739713832811,-87.23791694,8.738e-05,2]
[353243785,1739713833012,-412.76208306,8.738e-05,2]
[353243786,1739713833023,-500.0,8.738e-05,2]
[353243787,1739713833033,-500.0,8.738e-05,2]
[353243788,1739713833042,-503.3606704,8.738e-05,2]
[353243789,1739713833052,-633.75127506,8.738e-05,2]
[353243790,1739713833062,-500.0,8.738e-05,2]
[353243791,1739713833072,-509.15337383,8.738e-05,2]
[353243792,1739713833082,-502.3328953,8.738e-05,2]
[353243793,1739713833092,-500.0,8.738e-05,2]
[353243794,1739713833101,-500.0,8.738e-05,2]
[353243795,1739713833111,-25.78877299,8.738e-05,2]
[353243796,1739713833123,-204.06071841,8.738e-05,2]
[353243797,1739713833133,-500.0,8.738e-05,2]
[353243798,1739713833143,-500.0,8.738e-05,2]
[353243799,1739713833153,-609.29778675,8.738e-05,2]
[353243800,1739713833162,-500.0,8.738e-05,2]
[353243801,1739713833172,-500.0,8.738e-05,2]
[353243802,1739713833182,-500.0,8.738e-05,2]
[353243803,1739713833192,-500.0,8.738e-05,2]
[353243804,1739713833201,-315.47875821,8.738e-05,2]
[353243805,1739713833211,-203.64928317,8.738e-05,2]
[353243806,1739713833221,-503.882769,8.738e-05,2]
[353243807,1739713833231,-500.0,8.738e-05,2]
[353243808,1739713833240,-506.73045002,8.738e-05,2]
[353243809,1739713833251,-250.85438679,8.738e-05,2]
[353243810,1739713833261,-507.46210843,8.738e-05,2]
[353243811,1739713833270,-507.29767178,8.738e-05,2]
[353243812,1739713833281,-500.0,8.738e-05,2]
[353243813,1739713833291,-500.0,8.738e-05,2]
[353243814,1739713833301,-503.94911937,8.738e-05,2]
[353243815,1739713833311,-507.92340326,8.738e-05,2]
[353243816,1739713833321,-502.60023355,8.738e-05,2]
[353243817,1739713833331,-506.83110241,8.738e-05,2]
[353243818,1739713833341,-502.18620414,8.738e-05,2]
[353243819,1739713833352,-500.0,8.738e-05,2]
[353243820,1739713833361,-500.0,8.738e-05,2]
[353243821,1739713833370,-500.0,8.738e-05,2]
[353243822,1739713833380,-500.0,8.738e-05,2]
[353243823,1739713833390,-523.26795905,8.738e-05,2]
[353243824,1739713833400,-501.83046628,8.738e-05,2]
[353243825,1739713833410,-500.0,8.738e-05,2]
[353243826,1739713833420,-500.0,8.738e-05,2]
[353243827,1739713833430,-478.16417323,8.738e-05,2]
[353243828,1739713833440,-500.0,8.738e-05,2]
[353243829,1739713833450,-500.0,8.738e-05,2]
[353243830,1739713833459,-500.0,8.738e-05,2]
[353243831,1739713833469,-500.0,8.738e-05,2]
[353243832,1739713833480,-2372.17,8.738e-05,2]
[353243833,1739713833491,-500.0,8.738e-05,2]
[353243834,1739713833501,-500.0,8.738e-05,2]
[353243835,1739713833510,-500.0,8.738e-05,2]
[353243836,1739713833520,-500.0,8.738e-05,2]
[353243837,1739713833530,-500.0,8.738e-05,2]
[353243838,1739713833540,-500.0,8.738e-05,2]
[353243839,1739713833551,-504.04029848,8.738e-05,2]
[353243840,1739713833561,-505.90644954,8.738e-05,2]
[353243841,1739713833571,-500.0,8.738e-05,2]
[353243842,1739713833582,-506.65190305,8.738e-05,2]
[353243843,1739713833593,-503.53245811,8.738e-05,2]
[353243844,1739713833603,-500.0,8.739e-05,2]
[353243845,1739713833613,-627.30091157,8.739e-05,2]
[353243846,1739713833623,-500.0,8.739e-05,2]
[353243847,1739713833633,-500.0,8.739e-05,2]
[353243848,1739713833643,-810.18,8.739e-05,2]
[353243849,1739713833653,-500.0,8.739e-05,2]
[353243850,1739713833829,-500.0,8.739e-05,2]
[353243851,1739713833842,-500.0,8.739e-05,2]
[353243852,1739713833852,-500.0,8.739e-05,2]
[353243853,1739713833862,-500.0,8.739e-05,2]
[353243854,1739713833872,-500.0,8.739e-05,2]
[353243855,1739713833882,-866.68,8.739e-05,2]
[353243856,1739713833892,-641.31,8.739e-05,2]
[353243857,1739713833903,-621.82,8.739e-05,2]
[353243858,1739713833912,-532.81869721,8.739e-05,2]
[353243859,1739713833923,-500.0,8.739e-05,2]
[353243860,1739713833932,-500.0,8.739e-05,2]
[353243861,1739713833943,-500.0,8.739e-05,2]
[353243862,1739713833952,-601.5,8.739e-05,2]
[353243863,1739713833963,-500.0,8.739e-05,2]
[353243864,1739713833973,-500.0,8.739e-05,2]
[353243865,1739713833984,-500.0,8.739e-05,2]
[353243866,1739713833995,-500.0,8.739e-05,2]
[353243867,1739713834005,-500.0,8.739e-05,2]
[353243868,1739713834015,-500.0,8.739e-05,2]
[353243869,1739713834026,-500.0,8.739e-05,2]
[353243870,1739713834035,-855.96,8.739e-05,2]
[353243871,1739713834045,-500.0,8.739e-05,2]
[353243872,1739713834055,-500.0,8.739e-05,2]
[353243873,1739713834065,-500.0,8.739e-05,2]
[353243874,1739713834075,-445.05041148,8.739e-05,2]
[353243875,1739713834085,-500.0,8.739e-05,2]
[353243876,1739713834094,-500.0,8.739e-05,2]
[353243877,1739713834104,-500.0,8.739e-05,2]
[353243878,1739713834114,-500.0,8.739e-05,2]
[353243879,1739713834125,-500.0,8.739e-05,2]
[353243880,1739713834135,-500.0,8.739e-05,2]
[353243881,1739713834144,-500.0,8.739e-05,2]
[353243882,1739713834154,-500.0,8.739e-05,2]
[353243883,1739713834163,-500.0,8.739e-05,2]
[353243884,1739713834174,-500.0,8.739e-05,2]
[353243885,1739713834183,-500.0,8.739e-05,2]
[353243886,1739713834193,-500.0,8.739e-05,2]
[353243887,1739713834202,-500.0,8.739e-05,2]
[353243888,1739713834212,-500.0,8.739e-05,2]
[353243889,1739713834222,-610.56,8.739e-05,2]
[353243890,1739713834232,-214.43335683,8.739e-05,2]
[353243891,1739713834243,-500.0,8.739e-05,2]
[353243892,1739713834254,-500.0,8.739e-05,2]
[353243893,1739713834265,-500.0,8.739e-05,2]
[353243894,1739713834276,-175.03276158,8.739e-05,2]
[353243895,1739713834287,-500.0,8.739e-05,2]
[353243896,1739713834298,-500.0,8.739e-05,2]
[353243897,1739713834309,-541.71,8.739e-05,2]
[353243898,1739713834320,-555.45,8.739e-05,2]
[353243899,1739713834330,-849.12,8.739e-05,2]
[353243900,1739713834340,-2585.41,8.739e-05,2]
[353243901,1739713834350,-502.91379177,8.739e-05,2]
[353243902,1739713834361,-529.68,8.739e-05,2]
[353243903,1739713834371,-1363.78,8.739e-05,2]
[353243904,1739713834381,-2888.11,8.739e-05,2]
[353243905,1739713834392,-1055.0,8.739e-05,2]
[353243906,1739713834402,-500.0,8.739e-05,2]
[353243907,1739713834412,-500.0,8.739e-05,2]
[353243908,1739713834423,-500.0,8.739e-05,2]
[353243909,1739713834433,-500.0,8.739e-05,2]
[353243910,1739713834443,-500.0,8.739e-05,2]
[353243911,1739713834454,-690.74,8.739e-05,2]
[353243912,1739713834464,-586.46,8.739e-05,2]
[353243913,1739713834474,-892.48,8.739e-05,2]
[353243914,1739713834483,-500.0,8.739e-05,2]
[353243915,1739713834493,-500.0,8.739e-05,2]
[353243916,1739713834503,-500.0,8.739e-05,2]
[353243917,1739713834513,-1092.45,8.739e-05,2]
[353243918,1739713834522,-500.0,8.739e-05,2]
[353243919,1739713834533,-500.0,8.739e-05,2]
[353243920,1739713834543,-500.0,8.739e-05,2]
[353243921,1739713834552,-507.97256911,8.739e-05,2]
[353243922,1739713834562,-500.0,8.739e-05,2]
[353243923,1739713834572,-500.0,8.739e-05,2]
[353243924,1739713834582,-639.83,8.739e-05,2]
[353243925,1739713834592,-1139.54,8.739e-05,2]
[353243926,1739713834603,-2935.0,8.739e-05,2]
[353243927,1739713834612,-623.4,8.739e-05,2]
[353243928,1739713834622,-1482.03,8.739e-05,2]
[353243929,1739713834631,-6690.68,8.739e-05,2]
[353243930,1739713834641,-500.0,8.739e-05,2]
[353243931,1739713834651,-638.85,8.739e-05,2]
[353243932,1739713834662,-164.69664902,8.739e-05,2]
[353243933,1739713834672,-500.0,8.739e-05,2]
[353243934,1739713834682,-1197.3,8.739e-05,2]
[353243935,1739713834691,-500.0,8.739e-05,2]
[353243936,1739713834700,-216.99641848,8.739e-05,2]
[353243937,1739713834710,-1278.99,8.739e-05,2]
[353243938,1739713834719,-500.0,8.739e-05,2]
[353243939,1739713834729,-339.2364921,8.739e-05,2]
[353243940,1739713834739,-500.0,8.739e-05,2]
[353243941,1739713834748,-3055.07,8.739e-05,2]
[353243942,1739713834759,-167.66675015,8.739e-05,2]
[353243943,1739713834772,-606.25909632,8.739e-05,2]
[353243944,1739713834781,-695.72,8.739e-05,2]
[353243945,1739713834791,-3468.77,8.739e-05,2]
[353243946,1739713834800,-501.87346695,8.739e-05,2]
[353243947,1739713834811,-1978.6,8.739e-05,2]
[353243948,1739713834822,-601.18,8.739e-05,2]
[353243949,1739713834831,-500.0,8.739e-05,2]
[353243950,1739713834841,-500.0,8.739e-05,2]
[353243951,1739713834854,-803.75,8.739e-05,2]
[353243952,1739713834864,-870.04,8.739e-05,2]
[353243953,1739713834873,-2410.13,8.739e-05,2]
[353243954,1739713834883,-523.65978823,8.739e-05,2]
[353243955,1739713834893,-500.0,8.739e-05,2]
[353243956,1739713834902,-500.0,8.739e-05,2]
[353243957,1739713834912,-5738.63,8.739e-05,2]
[353243958,1739713834922,-151.0,8.739e-05,2]
[353243959,1739713834932,-151.0,8.739e-05,2]
[353243960,1739713834941,-820.95,8.739e-05,2]
[353243961,1739713834950,-500.0,8.739e-05,2]
[353243962,1739713834960,-783.89,8.739e-05,2]
[353243963,1739713834970,-500.0,8.739e-05,2]
[353243964,1739713834979,-1012.81760779,8.74e-05,2]
[353243965,1739713834988,-500.0,8.74e-05,2]
[353243966,1739713834998,-502.66768258,8.74e-05,2]
[353243967,1739713835007,-558.65,8.74e-05,2]
[353243968,1739713835016,-500.0,8.74e-05,2]
[353243969,1739713835026,-500.0,8.74e-05,2]
[353243970,1739713835035,-500.0,8.74e-05,2]
[353243971,1739713835045,-500.0,8.74e-05,2]
[353243972,1739713835054,-500.0,8.74e-05,2]
[353243973,1739713835063,-500.0,8.74e-05,2]
[353243974,1739713835072,-500.0,8.74e-05,2]
[353243975,1739713835082,-500.0,8.74e-05,2]
[353243976,1739713835091,-522.27245316,8.74e-05,2]
[353243977,1739713835102,-500.0,8.74e-05,2]
[353243978,1739713835111,-32611.74008125,8.74e-05,2]
[353243994,1739713838464,-500.0,8.738e-05,2]
[353243996,1739713838473,-360.56095781,8.738e-05,2]
[353243997,1739713838483,-500.0,8.739e-05,2]
[353243998,1739713838493,-3053.43991875,8.74e-05,2]
[353243999,1739713838503,-1772.53,8.74e-05,2]
[353244000,1739713838512,-844.16,8.74e-05,2]
[353244001,1739713838522,-632.81,8.74e-05,2]
[353244002,1739713838532,-500.0,8.74e-05,2]
[353244003,1739713838546,-9777.86,8.74e-05,2]
[353244004,1739713838556,-500.0,8.74e-05,2]
[353244005,1739713838565,-500.0,8.74e-05,2]
[353244006,1739713838574,-590.24,8.74e-05,2]
[353244007,1739713838584,-151.621805,8.74e-05,2]
[353244008,1739713838594,-500.0,8.74e-05,2]
[353244009,1739713838605,-600.64400475,8.74e-05,2]
[353244010,1739713838615,-803.85,8.74e-05,2]
[353244011,1739713838625,-14603.27,8.74e-05,2]
[353244012,1739713838635,-502.09315986,8.74e-05,2]
[353244013,1739713838648,-500.0,8.74e-05,2]
[353244014,1739713838663,-1044.59,8.74e-05,2]
[353244015,1739713838673,-678.78,8.74e-05,2]
[353244016,1739713838683,-151.0,8.74e-05,2]
[353244017,1739713838693,-151.0,8.74e-05,2]
[353244018,1739713838703,-500.0,8.74e-05,2]
[353244019,1739713838713,-192.96451703,8.74e-05,2]
[353244020,1739713838723,-500.0,8.74e-05,2]
[353244021,1739713838733,-615.13194922,8.74e-05,2]
[353244022,1739713838744,-500.0,8.741e-05,2]
[353244023,1739713838754,-502.97780848,8.741e-05,2]
[353244024,1739713838763,-500.0,8.741e-05,2]
[353244025,1739713838777,-500.0,8.741e-05,2]
[353244026,1739713838786,-506.79070446,8.741e-05,2]
[353244027,1739713838795,-560.31942373,8.741e-05,2]
[353244028,1739713838805,-501.75137019,8.741e-05,2]
[353244029,1739713838815,-500.0,8.741e-05,2]
[353244030,1739713838825,-414.13899221,8.741e-05,2]
[353244031,1739713838834,-500.0,8.741e-05,2]
[353244032,1739713838844,-501.93500696,8.741e-05,2]
[353244033,1739713838856,-503.83178383,8.741e-05,2]
[353244034,1739713838865,-238.88003441,8.741e-05,2]
[353244035,1739713838874,-506.64571154,8.741e-05,2]
[353244036,1739713838885,-505.96156691,8.741e-05,2]
[353244037,1739713838894,-500.0,8.741e-05,2]
[353244038,1739713838904,-518.5233657,8.741e-05,2]
[353244039,1739713838914,-500.0,8.741e-05,2]
[353244040,1739713838924,-500.0,8.741e-05,2]
[353244041,1739713838935,-247.35414828,8.741e-05,2]
[353244042,1739713838945,-500.0,8.741e-05,2]
[353244043,1739713838955,-475.51326546,8.741e-05,2]
[353244044,1739713838965,-500.0,8.741e-05,2]
[353244045,1739713838974,-500.0,8.741e-05,2]
[353244046,1739713838984,-501.34624512,8.741e-05,2]
[353244047,1739713838994,-500.0,8.741e-05,2]
[353244048,1739713839004,-500.0,8.741e-05,2]
[353244049,1739713839014,-500.0,8.741e-05,2]
[353244050,1739713839024,-501.24872047,8.741e-05,2]
[353244051,1739713839034,-500.0,8.741e-05,2]
[353244052,1739713839044,-504.69508463,8.741e-05,2]
[353244053,1739713839054,-500.0,8.741e-05,2]
[353244054,1739713839064,-500.0,8.741e-05,2]
[353244055,1739713839074,-500.0,8.741e-05,2]
[353244056,1739713839084,-500.0,8.741e-05,2]
[353244057,1739713839094,-500.0,8.741e-05,2]
[353244058,1739713839105,-500.0,8.741e-05,2]
[353244059,1739713839115,-501.67631303,8.741e-05,2]
[353244060,1739713839125,-501.59769993,8.741e-05,2]
[353244061,1739713839136,-500.0,8.741e-05,2]
[353244062,1739713839145,-500.0,8.741e-05,2]
[353244063,1739713839155,-487.38018915,8.741e-05,2]
[353244064,1739713839164,-500.0,8.741e-05,2]
[353244065,1739713839174,-501.27919834,8.741e-05,2]
[353244066,1739713839183,-500.0,8.741e-05,2]
[353244067,1739713839193,-503.02071668,8.741e-05,2]
[353244068,1739713839202,-561.65,8.741e-05,2]
[353244069,1739713839212,-500.0,8.741e-05,2]
[353244070,1739713839222,-500.0,8.741e-05,2]
[353244071,1739713839232,-277.8004232,8.741e-05,2]
[353244072,1739713839242,-500.0,8.741e-05,2]
[353244073,1739713839251,-500.0,8.741e-05,2]
[353244074,1739713839261,-514.56,8.741e-05,2]
[353244075,1739713839271,-695.51,8.741e-05,2]
[353244076,1739713839280,-500.0,8.741e-05,2]
[353244077,1739713839291,-500.0,8.741e-05,2]
[353244078,1739713839300,-500.0,8.741e-05,2]
[353244079,1739713839310,-544.44013558,8.741e-05,2]
[353244080,1739713839320,-500.0,8.741e-05,2]
[353244081,1739713839330,-737.47,8.741e-05,2]
[353244082,1739713839340,-500.0,8.741e-05,2]
[353244083,1739713839350,-500.0,8.741e-05,2]
[353244084,1739713839360,-842.0,8.741e-05,2]
[353244085,1739713839369,-501.76842259,8.741e-05,2]
[353244086,1739713839379,-848.4,8.741e-05,2]
[353244087,1739713839388,-500.0,8.741e-05,2]
[353244088,1739713839397,-373.216291,8.741e-05,2]
[353244089,1739713839406,-500.0,8.741e-05,2]
[353244090,1739713839416,-500.0,8.741e-05,2]
[353244091,1739713839425,-500.0,8.741e-05,2]
[353244092,1739713839434,-501.45423363,8.741e-05,2]
[353244093,1739713839444,-500.0,8.741e-05,2]
[353244094,1739713839454,-500.0,8.741e-05,2]
[353244095,1739713839463,-500.0,8.741e-05,2]
[353244096,1739713839473,-620.78,8.741e-05,2]
[353244097,1739713839483,-500.0,8.741e-05,2]
[353244098,1739713839493,-431.78221461,8.741e-05,2]
[353244099,1739713839502,-500.0,8.741e-05,2]
[353244100,1739713839512,-362.35952819,8.741e-05,2]
[353244101,1739713839523,-678.52,8.741e-05,2]
[353244102,1739713839533,-500.0,8.741e-05,2]
[353244103,1739713839543,-500.0,8.741e-05,2]
[353244104,1739713839553,-500.0,8.741e-05,2]
[353244105,1739713839562,-531.61078871,8.741e-05,2]
[353244106,1739713839572,-673.57,8.741e-05,2]
[353244107,1739713839582,-1983.04,8.741e-05,2]
[353244108,1739713839592,-500.0,8.741e-05,2]
[353244109,1739713839602,-500.0,8.741e-05,2]
[353244110,1739713839611,-1123.9,8.741e-05,2]
[353244111,1739713839620,-500.75016199,8.741e-05,2]
[353244112,1739713839630,-2112.86,8.741e-05,2]
[353244113,1739713839639,-500.0,8.741e-05,2]
[353244114,1739713839648,-500.0,8.741e-05,2]
[353244115,1739713839658,-672.2,8.741e-05,2]
[353244116,1739713839668,-594.81,8.741e-05,2]
[353244117,1739713839677,-500.0,8.741e-05,2]
[353244118,1739713839686,-502.89960616,8.741e-05,2]
[353244119,1739713839695,-500.0,8.741e-05,2]
[353244120,1739713839705,-500.0,8.741e-05,2]
[353244121,1739713839714,-326.27762324,8.741e-05,2]
[353244122,1739713839725,-500.0,8.741e-05,2]
[353244123,1739713839735,-500.0,8.741e-05,2]
[353244124,1739713839744,-500.0,8.741e-05,2]
[353244125,1739713839754,-552.84,8.741e-05,2]
[353244126,1739713839764,-2124.4,8.741e-05,2]
[353244127,1739713839777,-503.9392517,8.741e-05,2]
[353244128,1739713839787,-500.0,8.741e-05,2]
[353244129,1739713839796,-523.4096076,8.741e-05,2]
[353244130,1739713839806,-710.11,8.741e-05,2]
[353244131,1739713839817,-577.27,8.741e-05,2]
[353244132,1739713839826,-500.0,8.741e-05,2]
[353244133,1739713839836,-881.1,8.741e-05,2]
[353244134,1739713839847,-500.0,8.741e-05,2]
[353244135,1739713839857,-500.0,8.741e-05,2]
[353244136,1739713839867,-607.45,8.741e-05,2]
[353244137,1739713839877,-500.0,8.741e-05,2]
[353244138,1739713839887,-500.0,8.741e-05,2]
[353244139,1739713839896,-500.0,8.741e-05,2]
[353244140,1739713839906,-500.0,8.741e-05,2]
[353244141,1739713839915,-611.73,8.741e-05,2]
[353244142,1739713839925,-500.0,8.741e-05,2]
[353244143,1739713839935,-509.56524824,8.741e-05,2]
[353244144,1739713839948,-500.0,8.741e-05,2]
[353244145,1739713839958,-500.0,8.741e-05,2]
[353244146,1739713839967,-500.0,8.741e-05,2]
[353244147,1739713839977,-500.0,8.741e-05,2]
[353244148,1739713839986,-285.92763327,8.741e-05,2]
[353244149,1739713839996,-500.0,8.741e-05,2]
[353244150,1739713840006,-500.0,8.741e-05,2]
[353244151,1739713840015,-500.0,8.741e-05,2]
[353244152,1739713840025,-503.69608624,8.741e-05,2]
[353244153,1739713840035,-584.21949916,8.741e-05,2]
[353244154,1739713840044,-502.81837532,8.741e-05,2]
[353244155,1739713840053,-1019.62,8.741e-05,2]
[353244156,1739713840063,-500.0,8.741e-05,2]
[353244157,1739713840073,-671.97,8.741e-05,2]
[353244158,1739713840086,-500.0,8.741e-05,2]
[353244159,1739713840095,-500.0,8.741e-05,2]
[353244160,1739713840106,-501.84911511,8.741e-05,2]
[353244161,1739713840116,-502.95996963,8.741e-05,2]
[353244166,1739713840214,-500.0,8.741e-05,2]
[353244167,1739713840224,-500.0,8.741e-05,2]
[353244168,1739713840234,-500.0,8.741e-05,2]
[353244169,1739713840244,-572.51083817,8.741e-05,2]
[353244170,1739713840254,-151.0,8.741e-05,2]
[353244171,1739713840263,-151.0,8.741e-05,2]
[353244172,1739713840273,-151.0,8.741e-05,2]
[353244173,1739713840282,-258.668222,8.741e-05,2]
[353244174,1739713840292,-502.95364091,8.742e-05,2]
[353244175,1739713840301,-500.0,8.742e-05,2]
[353244176,1739713840310,-500.0,8.742e-05,2]
[353244177,1739713840320,-581.08781454,8.742e-05,2]
[353244178,1739713840329,-500.0,8.742e-05,2]
[353244179,1739713840338,-500.0,8.742e-05,2]
[353244180,1739713840347,-500.3629518,8.742e-05,2]
[353244182,1739713840357,-500.4904862,8.742e-05,2]
[353244184,1739713840366,-500.0,8.742e-05,2]
[353244186,1739713840375,-500.0,8.742e-05,2]
[353244187,1739713840385,-500.0,8.742e-05,2]
[353244188,1739713840394,-511.95590841,8.742e-05,2]
[353244189,1739713840403,-516.62304781,8.742e-05,2]
[353244191,1739713840413,-500.56246749,8.742e-05,2]
[353244192,1739713840422,-505.1979356,8.742e-05,2]
[353244193,1739713840431,-507.05521914,8.742e-05,2]
[353244194,1739713840441,-500.0,8.742e-05,2]
[353244195,1739713840451,-512.90609995,8.742e-05,2]
[353244196,1739713840460,-500.0,8.742e-05,2]
[353244197,1739713840470,-500.0,8.742e-05,2]
[353244199,1739713840479,-596.59174998,8.742e-05,2]
[353244201,1739713840489,-500.0,8.742e-05,2]
[353244203,1739713840499,-500.0,8.742e-05,2]